[Event "Titled Tuesday Blitz August 08 Early 2023"]
[White "Mrudul Dehankar"]
[Black "Eynullayev, Altay"]
[WhiteFideId "25096990"]
[BlackFideId "13413562"]
[WhiteElo "2445"]
[BlackElo "2578"]
[Result "1-0"]
[Round "7"]
[TimeControl "180+1"]
[Date "2023.08.08"]
[WhiteClock "0:00:03"]
[BlackClock "0:00:20"]
[Board "120"]

1. e4 {[%clk 0:02:48]}  c5 {[%clk 0:02:59]} 2. Nf3 {[%clk 0:02:46]}  d6 {[%clk 0:02:59]} 3. d4 {[%clk 0:02:46]}  cxd4 {[%clk 0:03:00]} 4. Nxd4 {[%clk 0:02:46]}  Nf6 {[%clk 0:03:01]} 5. Nc3 {[%clk 0:02:46]}  a6 {[%clk 0:03:02]} 6. Bg5 {[%clk 0:02:45]}  Nbd7 {[%clk 0:03:01]} 7. f4 {[%clk 0:02:45]}  Qc7 {[%clk 0:03:01]} 8. Qf3 {[%clk 0:02:43]}  h6 {[%clk 0:03:01]} 9. Bh4 {[%clk 0:02:42]}  g5 {[%clk 0:03:01]} 10. fxg5 {[%clk 0:02:32]}  hxg5 {[%clk 0:03:02]} 11. Bxg5 {[%clk 0:01:59]}  Qc5 {[%clk 0:03:01]} 12. Qe3 {[%clk 0:01:40]}  Ng4 {[%clk 0:02:31]} 13. Qd2 {[%clk 0:01:36]}  Rg8 {[%clk 0:02:10]} 14. h4 {[%clk 0:01:04]}  Bg7 {[%clk 0:01:53]} 15. Nf5 {[%clk 0:00:40]}  Bxc3 {[%clk 0:01:53]} 16. bxc3 {[%clk 0:00:37]}  f6 {[%clk 0:01:52]} 17. Bf4 {[%clk 0:00:35]}  Nb6 {[%clk 0:01:34]} 18. Qd4 {[%clk 0:00:27]}  Bxf5 {[%clk 0:00:50]} 19. Qxc5 {[%clk 0:00:17]}  dxc5 {[%clk 0:00:50]} 20. exf5 {[%clk 0:00:18]}  O-O-O {[%clk 0:00:50]} 21. Rb1 {[%clk 0:00:10]}  Nd5 {[%clk 0:00:49]} 22. Bd2 {[%clk 0:00:10]}  Nde3 {[%clk 0:00:47]} 23. Rc1 {[%clk 0:00:05]}  b5 {[%clk 0:00:36]} 24. g3 {[%clk 0:00:03]}  Nxf5 {[%clk 0:00:34]} 25. Bh3 {[%clk 0:00:03]}  Kb7 {[%clk 0:00:28]} 26. Rf1 {[%clk 0:00:02]}  Nxg3 {[%clk 0:00:20]} 27. Rg1 {[%clk 0:00:02]}  Ne4 {[%clk 0:00:21]} 28. Rxg4 {[%clk 0:00:01]}  Rxg4 {[%clk 0:00:20]} 29. Bxg4 {[%clk 0:00:01]}  Nxd2 {[%clk 0:00:19]} 30. Rd1 {[%clk 0:00:01]}  Nc4 {[%clk 0:00:19]} 31. Rxd8 {[%clk 0:00:01]}  Ne3 {[%clk 0:00:19]} 32. Rd7+ {[%clk 0:00:01]}  Kc6 {[%clk 0:00:18]} 33. Be6 {[%clk 0:00:02]}  Nxc2+ {[%clk 0:00:17]} 34. Kd2 {[%clk 0:00:02]}  Na3 {[%clk 0:00:18]} 35. h5 {[%clk 0:00:02]}  Nb1+ {[%clk 0:00:18]} 36. Ke2 {[%clk 0:00:02]}  Nxc3+ {[%clk 0:00:18]} 37. Kf3 {[%clk 0:00:03]}  b4 {[%clk 0:00:13]} 38. h6 {[%clk 0:00:03]}  Nb5 {[%clk 0:00:14]} 39. h7 {[%clk 0:00:02]}  Nd4+ {[%clk 0:00:15]} 40. Rxd4 {[%clk 0:00:02]}  cxd4 {[%clk 0:00:16]} 41. h8=Q {[%clk 0:00:02]}  Kd6 {[%clk 0:00:16]} 42. Qc8 {[%clk 0:00:02]}  Ke5 {[%clk 0:00:17]} 43. Qd7 {[%clk 0:00:03]}  f5 {[%clk 0:00:16]} 44. Qd5+ {[%clk 0:00:03]}  Kf6 {[%clk 0:00:17]} 45. Qxf5+ {[%clk 0:00:03]}  Kg7 {[%clk 0:00:18]} 46. Qf7+ {[%clk 0:00:03]}  Kh6 {[%clk 0:00:18]} 47. Bf5 {[%clk 0:00:03]}  Kg5 {[%clk 0:00:19]} 48. Qg6+ {[%clk 0:00:03]}  Kh4 {[%clk 0:00:20]} 49. Qh6# {[%clk 0:00:03]} 1-0


[Site "https://www.chess.com"]

[Event "Titled Tuesday Blitz August 08 Early 2023"]
[White "WindWhistler11"]
[Black "Manukyan, Sargis A."]
[BlackFideId "13303970"]
[WhiteElo "2435"]
[BlackElo "2569"]
[Result "1-0"]
[Round "7"]
[TimeControl "180+1"]
[Date "2023.08.08"]
[WhiteClock "0:00:28"]
[BlackClock "0:00:26"]
[Board "122"]

1. Nf3 {[%clk 0:03:00]}  d5 {[%clk 0:02:59]} 2. c4 {[%clk 0:02:58]}  e6 {[%clk 0:02:59]} 3. e3 {[%clk 0:02:58]}  Nf6 {[%clk 0:03:00]} 4. b3 {[%clk 0:02:59]}  Be7 {[%clk 0:03:00]} 5. Bb2 {[%clk 0:02:59]}  O-O {[%clk 0:03:00]} 6. Be2 {[%clk 0:03:00]}  c5 {[%clk 0:03:00]} 7. cxd5 {[%clk 0:03:00]}  exd5 {[%clk 0:03:00]} 8. d3 {[%clk 0:03:01]}  Nc6 {[%clk 0:03:01]} 9. O-O {[%clk 0:03:01]}  b6 {[%clk 0:03:01]} 10. Nbd2 {[%clk 0:03:02]}  Bf5 {[%clk 0:03:01]} 11. a3 {[%clk 0:03:02]}  Qc8 {[%clk 0:03:01]} 12. Ra2 {[%clk 0:03:02]}  h6 {[%clk 0:03:02]} 13. Qa1 {[%clk 0:03:02]}  Re8 {[%clk 0:03:01]} 14. Rd1 {[%clk 0:03:00]}  Bd8 {[%clk 0:02:58]} 15. Nf1 {[%clk 0:02:53]}  d4 {[%clk 0:02:57]} 16. e4 {[%clk 0:02:53]}  Nxe4 {[%clk 0:02:51]} 17. dxe4 {[%clk 0:02:51]}  Bxe4 {[%clk 0:02:52]} 18. Ng3 {[%clk 0:02:43]}  Bd5 {[%clk 0:02:51]} 19. Bc4 {[%clk 0:02:40]}  Bxc4 {[%clk 0:02:50]} 20. bxc4 {[%clk 0:02:41]}  Na5 {[%clk 0:02:50]} 21. Qc1 {[%clk 0:02:21]}  Qe6 {[%clk 0:02:48]} 22. Re1 {[%clk 0:02:19]}  Qd7 {[%clk 0:02:39]} 23. Rxe8+ {[%clk 0:02:01]}  Qxe8 {[%clk 0:02:40]} 24. Ba1 {[%clk 0:02:02]}  Bf6 {[%clk 0:02:38]} 25. Re2 {[%clk 0:02:01]}  Qa4 {[%clk 0:02:37]} 26. Nh5 {[%clk 0:01:57]}  Bg5 {[%clk 0:02:24]} 27. Nxg5 {[%clk 0:01:54]}  hxg5 {[%clk 0:02:24]} 28. h4 {[%clk 0:01:40]}  f6 {[%clk 0:02:04]} 29. Re7 {[%clk 0:01:34]}  Qxc4 {[%clk 0:01:47]} 30. Rxg7+ {[%clk 0:01:26]}  Kf8 {[%clk 0:01:47]} 31. Qd1 {[%clk 0:01:12]}  Re8 {[%clk 0:01:45]} 32. Qf3 {[%clk 0:01:02]}  Qe6 {[%clk 0:01:20]} 33. hxg5 {[%clk 0:00:52]}  f5 {[%clk 0:01:10]} 34. g6 {[%clk 0:00:42]}  Qe1+ {[%clk 0:00:50]} 35. Kh2 {[%clk 0:00:42]}  Qe5+ {[%clk 0:00:51]} 36. g3 {[%clk 0:00:40]}  Qxg7 {[%clk 0:00:51]} 37. Nxg7 {[%clk 0:00:40]}  Kxg7 {[%clk 0:00:52]} 38. Qxf5 {[%clk 0:00:39]}  Re7 {[%clk 0:00:48]} 39. g4 {[%clk 0:00:35]}  Nb7 {[%clk 0:00:24]} 40. g5 {[%clk 0:00:33]}  Rc7 {[%clk 0:00:24]} 41. Qf6+ {[%clk 0:00:32]}  Kg8 {[%clk 0:00:24]} 42. Qe5 {[%clk 0:00:26]}  Rc8 {[%clk 0:00:11]} 43. Qe6+ {[%clk 0:00:26]}  Kg7 {[%clk 0:00:12]} 44. Qxc8 {[%clk 0:00:26]}  Nd6 {[%clk 0:00:12]} 45. Qd7+ {[%clk 0:00:26]}  Kxg6 {[%clk 0:00:13]} 46. Qxd6+ {[%clk 0:00:26]}  Kxg5 {[%clk 0:00:14]} 47. Bxd4 {[%clk 0:00:24]}  cxd4 {[%clk 0:00:13]} 48. Qxd4 {[%clk 0:00:24]}  a5 {[%clk 0:00:14]} 49. Qxb6 {[%clk 0:00:24]}  a4 {[%clk 0:00:15]} 50. Qb4 {[%clk 0:00:24]}  Kf5 {[%clk 0:00:15]} 51. Qxa4 {[%clk 0:00:24]}  Ke5 {[%clk 0:00:16]} 52. Qb4 {[%clk 0:00:25]}  Kd5 {[%clk 0:00:17]} 53. a4 {[%clk 0:00:26]}  Kc6 {[%clk 0:00:18]} 54. a5 {[%clk 0:00:26]}  Kc7 {[%clk 0:00:18]} 55. a6 {[%clk 0:00:27]}  Kc6 {[%clk 0:00:19]} 56. a7 {[%clk 0:00:28]}  Kc7 {[%clk 0:00:20]} 57. Kg2 {[%clk 0:00:28]}  Kd7 {[%clk 0:00:21]} 58. Kf1 {[%clk 0:00:29]}  Ke6 {[%clk 0:00:22]} 59. Ke2 {[%clk 0:00:30]}  Kd5 {[%clk 0:00:23]} 60. Ke3 {[%clk 0:00:30]}  Ke5 {[%clk 0:00:23]} 61. a8=Q {[%clk 0:00:29]}  Ke6 {[%clk 0:00:24]} 62. Qa6+ {[%clk 0:00:28]}  Kd7 {[%clk 0:00:25]} 63. Qbb7+ {[%clk 0:00:28]}  Kd8 {[%clk 0:00:26]} 64. Qaa8# {[%clk 0:00:28]} 1-0


[Site "https://www.chess.com"]

[Event "Titled Tuesday Blitz August 08 Early 2023"]
[White "Kukreja Sankalp"]
[Black "Do Nascimento,Christian Almeida"]
[WhiteFideId "45027676"]
[BlackFideId "2143801"]
[WhiteElo "2422"]
[BlackElo "2553"]
[Result "1-0"]
[Round "7"]
[TimeControl "180+1"]
[Date "2023.08.08"]
[WhiteClock "0:00:06"]
[BlackClock "0:00:00"]
[Board "127"]

1. e4 {[%clk 0:02:44]}  e6 {[%clk 0:02:52]} 2. d4 {[%clk 0:02:43]}  d5 {[%clk 0:02:52]} 3. Nc3 {[%clk 0:02:44]}  Bb4 {[%clk 0:02:50]} 4. Ne2 {[%clk 0:02:43]}  Ne7 {[%clk 0:02:49]} 5. a3 {[%clk 0:02:42]}  Bxc3+ {[%clk 0:02:47]} 6. Nxc3 {[%clk 0:02:43]}  O-O {[%clk 0:02:45]} 7. Bd3 {[%clk 0:02:33]}  c5 {[%clk 0:02:38]} 8. dxc5 {[%clk 0:02:32]}  Nbc6 {[%clk 0:02:38]} 9. O-O {[%clk 0:02:31]}  dxe4 {[%clk 0:02:27]} 10. Nxe4 {[%clk 0:02:32]}  e5 {[%clk 0:02:20]} 11. Qh5 {[%clk 0:02:23]}  Bf5 {[%clk 0:02:14]} 12. Nf6+ {[%clk 0:02:18]}  gxf6 {[%clk 0:02:10]} 13. Bxf5 {[%clk 0:02:17]}  Nxf5 {[%clk 0:02:10]} 14. Qxf5 {[%clk 0:02:18]}  Kh8 {[%clk 0:02:06]} 15. Bh6 {[%clk 0:02:14]}  Rg8 {[%clk 0:02:06]} 16. Rad1 {[%clk 0:02:13]}  Qe7 {[%clk 0:02:04]} 17. Rd7 {[%clk 0:02:07]}  Nd4 {[%clk 0:01:45]} 18. Qh3 {[%clk 0:02:07]}  Qe6 {[%clk 0:01:29]} 19. Qxe6 {[%clk 0:01:50]}  fxe6 {[%clk 0:01:17]} 20. c3 {[%clk 0:01:34]}  Nf3+ {[%clk 0:00:59]} 21. Kh1 {[%clk 0:01:32]}  Nh4 {[%clk 0:00:58]} 22. Rxb7 {[%clk 0:01:04]}  Rxg2 {[%clk 0:00:41]} 23. c6 {[%clk 0:00:59]}  Rag8 {[%clk 0:00:40]} 24. Rd1 {[%clk 0:00:34]}  Nf3 {[%clk 0:00:33]} 25. Bg7+ {[%clk 0:00:33]}  R2xg7 {[%clk 0:00:33]} 26. Rxg7 {[%clk 0:00:25]}  Kxg7 {[%clk 0:00:33]} 27. c7 {[%clk 0:00:15]}  Rc8 {[%clk 0:00:32]} 28. Rd7+ {[%clk 0:00:14]}  Kg6 {[%clk 0:00:33]} 29. Kg2 {[%clk 0:00:14]}  e4 {[%clk 0:00:33]} 30. b4 {[%clk 0:00:13]}  h5 {[%clk 0:00:24]} 31. b5 {[%clk 0:00:11]}  Ne5 {[%clk 0:00:20]} 32. Re7 {[%clk 0:00:11]}  Nc4 {[%clk 0:00:15]} 33. a4 {[%clk 0:00:10]}  Na5 {[%clk 0:00:12]} 34. Rd7 {[%clk 0:00:08]}  Kf5 {[%clk 0:00:09]} 35. Kf1 {[%clk 0:00:07]}  e5 {[%clk 0:00:08]} 36. Ke2 {[%clk 0:00:07]}  Ke6 {[%clk 0:00:08]} 37. Rh7 {[%clk 0:00:07]}  Kd6 {[%clk 0:00:08]} 38. Ke3 {[%clk 0:00:06]}  Rxc7 {[%clk 0:00:05]} 39. Rxc7 {[%clk 0:00:06]}  Kxc7 {[%clk 0:00:06]} 40. Kxe4 {[%clk 0:00:07]}  Kd6 {[%clk 0:00:07]} 41. Kf5 {[%clk 0:00:07]}  Ke7 {[%clk 0:00:07]} 42. Kg6 {[%clk 0:00:08]}  h4 {[%clk 0:00:08]} 43. Kf5 {[%clk 0:00:07]}  Nb3 {[%clk 0:00:08]} 44. c4 {[%clk 0:00:06]}  Kd6 {[%clk 0:00:06]} 45. Kxf6 {[%clk 0:00:05]}  Na5 {[%clk 0:00:06]} 46. c5+ {[%clk 0:00:05]}  Kxc5 {[%clk 0:00:07]} 47. Kxe5 {[%clk 0:00:05]}  Nc4+ {[%clk 0:00:07]} 48. Ke6 {[%clk 0:00:05]}  Nb2 {[%clk 0:00:07]} 49. f4 {[%clk 0:00:05]}  Nxa4 {[%clk 0:00:07]} 50. f5 {[%clk 0:00:06]}  Nc3 {[%clk 0:00:04]} 51. f6 {[%clk 0:00:06]}  Nxb5 {[%clk 0:00:03]} 52. f7 {[%clk 0:00:06]}  Nc7+ {[%clk 0:00:00]} 53. Kd7 {[%clk 0:00:06]} 1-0


[Site "https://www.chess.com"]

[Event "Titled Tuesday Blitz August 08 Early 2023"]
[White "Al-Tarboush, Ward"]
[Black "Bogaudinov, Rushan"]
[WhiteFideId "7601450"]
[BlackFideId "4129288"]
[WhiteElo "2552"]
[BlackElo "2420"]
[Result "0-1"]
[Round "7"]
[TimeControl "180+1"]
[Date "2023.08.08"]
[WhiteClock "0:01:57"]
[BlackClock "0:00:42"]
[Board "128"]

1. e4 {[%clk 0:03:00]}  c5 {[%clk 0:02:59]} 2. Nf3 {[%clk 0:02:59]}  Nc6 {[%clk 0:02:58]} 3. d4 {[%clk 0:02:58]}  cxd4 {[%clk 0:02:57]} 4. Nxd4 {[%clk 0:02:59]}  e6 {[%clk 0:02:53]} 5. Nc3 {[%clk 0:02:58]}  a6 {[%clk 0:02:52]} 6. Be3 {[%clk 0:02:58]}  Qc7 {[%clk 0:02:51]} 7. Qd2 {[%clk 0:02:58]}  b5 {[%clk 0:02:50]} 8. O-O-O {[%clk 0:02:57]}  Nf6 {[%clk 0:02:47]} 9. f4 {[%clk 0:02:56]}  b4 {[%clk 0:02:44]} 10. Nd5 {[%clk 0:02:55]}  exd5 {[%clk 0:02:39]} 11. exd5 {[%clk 0:02:54]}  Nxd4 {[%clk 0:02:30]} 12. Qxd4 {[%clk 0:02:47]}  Bd6 {[%clk 0:02:21]} 13. Bd3 {[%clk 0:02:43]}  O-O {[%clk 0:02:16]} 14. g4 {[%clk 0:02:43]}  Re8 {[%clk 0:02:07]} 15. g5 {[%clk 0:02:43]}  Ng4 {[%clk 0:01:57]} 16. Bd2 {[%clk 0:02:43]}  Qc5 {[%clk 0:01:49]} 17. Rhe1 {[%clk 0:02:22]}  Bb7 {[%clk 0:01:35]} 18. Bxh7+ {[%clk 0:02:18]}  Kxh7 {[%clk 0:01:30]} 19. Qd3+ {[%clk 0:02:19]}  Kg8 {[%clk 0:01:28]} 20. g6 {[%clk 0:02:19]}  Qxd5 {[%clk 0:01:04]} 21. Qh3 {[%clk 0:02:19]}  Nh6 {[%clk 0:00:59]} 22. Rxe8+ {[%clk 0:02:19]}  Rxe8 {[%clk 0:00:58]} 23. Qxd7 {[%clk 0:02:14]}  Bc6 {[%clk 0:00:57]} 24. gxf7+ {[%clk 0:02:14]}  Nxf7 {[%clk 0:00:56]} 25. Qg4 {[%clk 0:02:13]}  Qxa2 {[%clk 0:00:53]} 26. Be3 {[%clk 0:02:01]}  Rxe3 {[%clk 0:00:46]} 27. Qc8+ {[%clk 0:02:01]}  Be8 {[%clk 0:00:46]} 28. Kd2 {[%clk 0:01:57]}  Qe6 {[%clk 0:00:42]} 0-1


[Site "https://www.chess.com"]

[Event "Titled Tuesday Blitz August 08 Early 2023"]
[White "EsmeraldasAnderson03"]
[Black "Janaszak, Dawid"]
[BlackFideId "1119206"]
[WhiteElo "2390"]
[BlackElo "2537"]
[Result "0-1"]
[Round "7"]
[TimeControl "180+1"]
[Date "2023.08.08"]
[WhiteClock "0:01:18"]
[BlackClock "0:01:42"]
[Board "131"]

1. d4 {[%clk 0:03:00]}  Nf6 {[%clk 0:02:58]} 2. Nf3 {[%clk 0:03:00]}  g6 {[%clk 0:02:58]} 3. Bf4 {[%clk 0:02:58]}  d6 {[%clk 0:02:57]} 4. h3 {[%clk 0:02:58]}  Bg7 {[%clk 0:02:56]} 5. e3 {[%clk 0:02:58]}  c5 {[%clk 0:02:56]} 6. Nbd2 {[%clk 0:02:58]}  O-O {[%clk 0:02:51]} 7. c3 {[%clk 0:02:58]}  Nc6 {[%clk 0:02:51]} 8. Be2 {[%clk 0:02:58]}  cxd4 {[%clk 0:02:44]} 9. exd4 {[%clk 0:02:58]}  e5 {[%clk 0:02:36]} 10. dxe5 {[%clk 0:02:57]}  dxe5 {[%clk 0:02:37]} 11. Nxe5 {[%clk 0:02:58]}  Nd5 {[%clk 0:02:22]} 12. Nxc6 {[%clk 0:02:55]}  bxc6 {[%clk 0:02:22]} 13. Bg3 {[%clk 0:02:45]}  Bxc3 {[%clk 0:02:21]} 14. bxc3 {[%clk 0:02:36]}  Nxc3 {[%clk 0:02:21]} 15. Qc2 {[%clk 0:02:37]}  Nxe2 {[%clk 0:02:19]} 16. Kxe2 {[%clk 0:02:34]}  Ba6+ {[%clk 0:02:17]} 17. Nc4 {[%clk 0:02:22]}  Qd5 {[%clk 0:02:06]} 18. Rhc1 {[%clk 0:01:49]}  Qxg2 {[%clk 0:02:06]} 19. Kd2 {[%clk 0:01:23]}  Rfd8+ {[%clk 0:01:50]} 20. Kc3 {[%clk 0:01:20]}  Bxc4 {[%clk 0:01:46]} 21. Kxc4 {[%clk 0:01:20]}  Qd5+ {[%clk 0:01:45]} 22. Kc3 {[%clk 0:01:21]}  Qd4+ {[%clk 0:01:44]} 23. Kb3 {[%clk 0:01:18]}  Rab8+ {[%clk 0:01:43]} 24. Ka3 {[%clk 0:01:18]}  Qb4# {[%clk 0:01:42]} 0-1


[Site "https://www.chess.com"]

[Event "Titled Tuesday Blitz August 08 Early 2023"]
[White "Gueci, Tea"]
[Black "Degenbaev, Aziz"]
[WhiteFideId "872342"]
[BlackFideId "13802640"]
[WhiteElo "2387"]
[BlackElo "2531"]
[Result "0-1"]
[Round "7"]
[TimeControl "180+1"]
[Date "2023.08.08"]
[WhiteClock "0:00:07"]
[BlackClock "0:01:11"]
[Board "132"]

1. d4 {[%clk 0:03:00]}  g6 {[%clk 0:02:59]} 2. e3 {[%clk 0:03:00]}  Bg7 {[%clk 0:03:00]} 3. c4 {[%clk 0:03:01]}  d6 {[%clk 0:02:59]} 4. Nc3 {[%clk 0:03:00]}  c5 {[%clk 0:02:59]} 5. Nf3 {[%clk 0:03:00]}  Nc6 {[%clk 0:02:58]} 6. h3 {[%clk 0:02:57]}  Nf6 {[%clk 0:02:56]} 7. Be2 {[%clk 0:02:57]}  O-O {[%clk 0:02:57]} 8. O-O {[%clk 0:02:56]}  cxd4 {[%clk 0:02:57]} 9. exd4 {[%clk 0:02:56]}  d5 {[%clk 0:02:57]} 10. Re1 {[%clk 0:02:48]}  Bf5 {[%clk 0:02:53]} 11. Bf4 {[%clk 0:02:41]}  Rc8 {[%clk 0:02:51]} 12. Be5 {[%clk 0:02:28]}  dxc4 {[%clk 0:02:50]} 13. Qa4 {[%clk 0:02:13]}  a6 {[%clk 0:02:41]} 14. Rad1 {[%clk 0:01:51]}  Na5 {[%clk 0:02:14]} 15. Rd2 {[%clk 0:01:33]}  b5 {[%clk 0:02:13]} 16. Qd1 {[%clk 0:01:33]}  Nc6 {[%clk 0:02:13]} 17. d5 {[%clk 0:01:26]}  Nxe5 {[%clk 0:02:11]} 18. Nxe5 {[%clk 0:01:27]}  Qd6 {[%clk 0:02:09]} 19. Nc6 {[%clk 0:01:22]}  Rfe8 {[%clk 0:02:04]} 20. Bf3 {[%clk 0:01:20]}  Nd7 {[%clk 0:01:59]} 21. Rde2 {[%clk 0:01:13]}  Bf8 {[%clk 0:01:52]} 22. Ne4 {[%clk 0:01:08]}  Bxe4 {[%clk 0:01:51]} 23. Rxe4 {[%clk 0:01:07]}  Nc5 {[%clk 0:01:51]} 24. Rh4 {[%clk 0:01:06]}  Nd3 {[%clk 0:01:50]} 25. Re2 {[%clk 0:01:06]}  Qf6 {[%clk 0:01:49]} 26. Rhe4 {[%clk 0:01:01]}  Nxb2 {[%clk 0:01:45]} 27. Qa1 {[%clk 0:00:58]}  c3 {[%clk 0:01:43]} 28. Re5 {[%clk 0:00:53]}  Nd3 {[%clk 0:01:40]} 29. Qxc3 {[%clk 0:00:33]}  Nxe5 {[%clk 0:01:39]} 30. Qxe5 {[%clk 0:00:33]}  Qxe5 {[%clk 0:01:36]} 31. Rxe5 {[%clk 0:00:34]}  Kg7 {[%clk 0:01:32]} 32. Bg4 {[%clk 0:00:30]}  e6 {[%clk 0:01:26]} 33. Nd4 {[%clk 0:00:16]}  exd5 {[%clk 0:01:19]} 34. Rxd5 {[%clk 0:00:17]}  Rcd8 {[%clk 0:01:17]} 35. Rxd8 {[%clk 0:00:17]}  Rxd8 {[%clk 0:01:18]} 36. Nc6 {[%clk 0:00:16]}  Rd6 {[%clk 0:01:17]} 37. Nb4 {[%clk 0:00:14]}  h5 {[%clk 0:01:16]} 38. Bf3 {[%clk 0:00:14]}  a5 {[%clk 0:01:16]} 39. Nc6 {[%clk 0:00:14]}  a4 {[%clk 0:01:15]} 40. Kf1 {[%clk 0:00:14]}  Rd2 {[%clk 0:01:13]} 41. Be2 {[%clk 0:00:12]}  Rxa2 {[%clk 0:01:13]} 42. Bxb5 {[%clk 0:00:12]}  a3 {[%clk 0:01:13]} 43. Nd4 {[%clk 0:00:09]}  Rb2 {[%clk 0:01:12]} 44. Bc4 {[%clk 0:00:07]}  Rb4 {[%clk 0:01:11]} 0-1


[Site "https://www.chess.com"]

[Event "Titled Tuesday Blitz August 08 Early 2023"]
[White "Krzywda, Andrzej"]
[Black "Kanyamarala, Tarun"]
[WhiteFideId "1114565"]
[BlackFideId "45004714"]
[WhiteElo "2372"]
[BlackElo "2525"]
[Result "1-0"]
[Round "7"]
[TimeControl "180+1"]
[Date "2023.08.08"]
[WhiteClock "0:01:16"]
[BlackClock "0:00:39"]
[Board "134"]

1. e4 {[%clk 0:03:00]}  c5 {[%clk 0:02:55]} 2. Nf3 {[%clk 0:03:00]}  a6 {[%clk 0:02:54]} 3. c4 {[%clk 0:02:59]}  b6 {[%clk 0:02:43]} 4. Nc3 {[%clk 0:02:58]}  Bb7 {[%clk 0:02:43]} 5. d4 {[%clk 0:02:58]}  cxd4 {[%clk 0:02:44]} 6. Nxd4 {[%clk 0:02:59]}  e6 {[%clk 0:02:43]} 7. Be2 {[%clk 0:02:56]}  Nf6 {[%clk 0:02:39]} 8. f3 {[%clk 0:02:55]}  d6 {[%clk 0:02:36]} 9. O-O {[%clk 0:02:55]}  Be7 {[%clk 0:02:36]} 10. Be3 {[%clk 0:02:55]}  O-O {[%clk 0:02:36]} 11. a4 {[%clk 0:02:55]}  Nbd7 {[%clk 0:02:36]} 12. Nb3 {[%clk 0:02:54]}  Nc5 {[%clk 0:02:34]} 13. a5 {[%clk 0:02:50]}  Nfd7 {[%clk 0:02:32]} 14. axb6 {[%clk 0:02:49]}  Qxb6 {[%clk 0:02:30]} 15. Na5 {[%clk 0:02:35]}  Qxb2 {[%clk 0:02:20]} 16. Nxb7 {[%clk 0:02:13]}  Qxb7 {[%clk 0:01:58]} 17. Rb1 {[%clk 0:02:10]}  Qc7 {[%clk 0:01:56]} 18. Qc2 {[%clk 0:02:03]}  Bf6 {[%clk 0:01:53]} 19. Rfd1 {[%clk 0:01:59]}  Rfb8 {[%clk 0:01:42]} 20. Bf1 {[%clk 0:01:58]}  Qa5 {[%clk 0:01:34]} 21. Ne2 {[%clk 0:01:56]}  Qa3 {[%clk 0:01:25]} 22. Bf2 {[%clk 0:01:48]}  Na4 {[%clk 0:00:59]} 23. Rd3 {[%clk 0:01:17]}  Qxd3 {[%clk 0:00:39]} 24. Qxd3 {[%clk 0:01:16]} 1-0


[Site "https://www.chess.com"]

[Event "Titled Tuesday Blitz August 08 Early 2023"]
[White "Baghdasaryan, Vahe"]
[Black "Topalov, Aleksandar"]
[WhiteFideId "13303139"]
[BlackFideId "925659"]
[WhiteElo "2524"]
[BlackElo "2361"]
[Result "1-0"]
[Round "7"]
[TimeControl "180+1"]
[Date "2023.08.08"]
[WhiteClock "0:00:03"]
[BlackClock "0:00:00"]
[Board "135"]

1. e4 {[%clk 0:03:00]}  e6 {[%clk 0:02:59]} 2. d4 {[%clk 0:02:58]}  d5 {[%clk 0:02:59]} 3. Nd2 {[%clk 0:02:56]}  Nf6 {[%clk 0:02:59]} 4. e5 {[%clk 0:02:54]}  Ng8 {[%clk 0:02:59]} 5. Bd3 {[%clk 0:02:52]}  Ne7 {[%clk 0:02:59]} 6. Ne2 {[%clk 0:02:50]}  Qd7 {[%clk 0:02:59]} 7. c3 {[%clk 0:02:49]}  b6 {[%clk 0:03:00]} 8. a4 {[%clk 0:02:47]}  Ba6 {[%clk 0:02:58]} 9. Nf3 {[%clk 0:02:44]}  Bxd3 {[%clk 0:02:57]} 10. Qxd3 {[%clk 0:02:45]}  c5 {[%clk 0:02:56]} 11. a5 {[%clk 0:02:36]}  c4 {[%clk 0:02:57]} 12. Qc2 {[%clk 0:02:31]}  b5 {[%clk 0:02:57]} 13. b4 {[%clk 0:02:23]}  cxb3 {[%clk 0:02:55]} 14. Qxb3 {[%clk 0:02:18]}  a6 {[%clk 0:02:55]} 15. Ba3 {[%clk 0:02:11]}  Nbc6 {[%clk 0:02:53]} 16. Bc5 {[%clk 0:02:07]}  Ng6 {[%clk 0:02:51]} 17. Bb6 {[%clk 0:01:58]}  Be7 {[%clk 0:02:45]} 18. h4 {[%clk 0:01:53]}  h5 {[%clk 0:02:44]} 19. g3 {[%clk 0:01:49]}  f6 {[%clk 0:02:21]} 20. exf6 {[%clk 0:01:47]}  gxf6 {[%clk 0:02:21]} 21. Qc2 {[%clk 0:01:45]}  Kf7 {[%clk 0:02:21]} 22. Qd3 {[%clk 0:01:04]}  Bd6 {[%clk 0:02:19]} 23. O-O {[%clk 0:00:49]}  Rag8 {[%clk 0:02:18]} 24. Kh1 {[%clk 0:00:46]}  Nge7 {[%clk 0:01:54]} 25. Nc1 {[%clk 0:00:30]}  Nf5 {[%clk 0:01:50]} 26. Nb3 {[%clk 0:00:26]}  Rg4 {[%clk 0:01:18]} 27. Nc5 {[%clk 0:00:21]}  Bxc5 {[%clk 0:01:16]} 28. Bxc5 {[%clk 0:00:20]}  Rhg8 {[%clk 0:01:08]} 29. Nh2 {[%clk 0:00:18]}  Re4 {[%clk 0:01:01]} 30. Rae1 {[%clk 0:00:16]}  Rxe1 {[%clk 0:00:53]} 31. Rxe1 {[%clk 0:00:17]}  Nxa5 {[%clk 0:00:48]} 32. Qe2 {[%clk 0:00:15]}  Rh8 {[%clk 0:00:46]} 33. Ra1 {[%clk 0:00:15]}  Qc7 {[%clk 0:00:44]} 34. Bb4 {[%clk 0:00:14]}  Nc6 {[%clk 0:00:36]} 35. Rxa6 {[%clk 0:00:13]}  Nxb4 {[%clk 0:00:36]} 36. cxb4 {[%clk 0:00:13]}  Nd6 {[%clk 0:00:31]} 37. Qd3 {[%clk 0:00:09]}  Ne4 {[%clk 0:00:28]} 38. Kg2 {[%clk 0:00:06]}  Qc4 {[%clk 0:00:20]} 39. Ra7+ {[%clk 0:00:04]}  Kg6 {[%clk 0:00:19]} 40. Qd1 {[%clk 0:00:03]}  Qxb4 {[%clk 0:00:14]} 41. Nf1 {[%clk 0:00:03]}  Qb2 {[%clk 0:00:12]} 42. Qf3 {[%clk 0:00:03]}  Qxd4 {[%clk 0:00:09]} 43. Ne3 {[%clk 0:00:03]}  Qe5 {[%clk 0:00:08]} 44. Ra6 {[%clk 0:00:02]}  b4 {[%clk 0:00:07]} 45. Nc2 {[%clk 0:00:02]}  b3 {[%clk 0:00:07]} 46. Ne1 {[%clk 0:00:02]}  b2 {[%clk 0:00:07]} 47. Rb6 {[%clk 0:00:03]}  Rc8 {[%clk 0:00:06]} 48. Nd3 {[%clk 0:00:03]}  Qd4 {[%clk 0:00:00]} 49. Nf4+ {[%clk 0:00:03]} 1-0


[Site "https://www.chess.com"]